bitfinex-derivatives/quotes_SOLF0:USTF0_20241212
["timestamp","ask_amount","ask_price","bid_price","bid_amount"]
[1734030406011,2.1569,231.73,231.68,11.80713594]
[1734030406211,5.11386311,231.77,231.68,13.90713594]
[1734030407220,2.1569,231.74,231.68,16.06443594]
[1734030407522,5.11386311,231.77,231.68,2.1]
[1734030407720,0.6535534,231.76,231.68,2.1]
[1734030407919,2.157,231.73,231.68,2.1]
[1734030408517,2.157,231.73,231.68,13.90713594]
[1734030410321,2.157,231.72,231.68,13.90713594]
[1734030411019,2.8021,231.83,231.68,13.90713594]
[1734030411020,4.3105,231.91,231.71,11.80713594]
[1734030411222,5.06170507,231.84,231.74,11.80713594]
[1734030411422,2.1561,231.81,231.75,2.1567]
[1734030412323,2.1,231.87,231.77,11.80713594]
[1734030412629,0.65374952,231.86,231.77,11.80713594]
[1734030413228,0.65374952,231.86,231.75,2.1567]
[1734030413526,5.14612263,231.85,231.74,13.90713594]
[1734030413718,2.1564,231.79,231.74,13.90713594]
[1734030414632,5.14612263,231.85,231.74,13.90713594]
[1734030414921,0.65383461,231.84,231.74,13.90713594]
[1734030415126,5.14612263,231.85,231.74,13.90713594]
[1734030415527,0.65386087,231.84,231.74,13.90713594]
[1734030415724,2.1562,231.8,231.74,16.06383594]
[1734030416530,5.14612263,231.85,231.75,2.1567]
[1734030416826,0.65383263,231.84,231.74,13.90713594]
[1734030417026,2.1563,231.79,231.74,13.90713594]
[1734030417223,5.14612263,231.85,231.74,13.90713594]
[1734030417432,0.65383449,231.84,231.74,13.90713594]
[1734030417629,0.65383449,231.84,231.71,11.80713594]
[1734030417835,0.65383449,231.84,231.69,4.1447]
[1734030417836,11.80713594,231.83,231.69,6.2447]
[1734030418026,5.14612263,231.85,231.69,6.2447]
[1734030418027,11.80713594,231.8,231.69,6.2447]
[1734030418325,11.80713594,231.8,231.69,8.4019]
[1734030419028,2.1567,231.76,231.69,8.4019]
[1734030419232,13.90713594,231.77,231.69,1.3145]
[1734030419427,2.1571,231.71,231.65,2.1]
[1734030419833,2.1571,231.71,231.65,4.2576]
[1734030420736,13.90713594,231.77,231.66,2.1575]
[1734030421130,0.65387021,231.76,231.67,2.1574]
[1734030421332,2.1,231.77,231.67,11.80713594]
[1734030422729,2.1569,231.74,231.67,11.80713594]
[1734030422927,2.1,231.77,231.67,11.80713594]
[1734030423932,2.1568,231.75,231.7,2.1571]
[1734030424133,2.1,231.77,231.7,2.1571]
[1734030424535,2.1569,231.73,231.68,2.1573]
[1734030424738,2.1,231.77,231.67,11.80713594]
[1734030425035,0.65346046,231.76,231.67,11.80713594]
[1734030425234,2.1569,231.74,231.67,13.96453594]
[1734030425434,2.1,231.77,231.67,11.80713594]
[1734030425630,0.65345057,231.76,231.66,2.1]
[1734030425828,2.1569,231.73,231.66,2.1]
[1734030426030,2.1,231.76,231.66,2.1]
[1734030426429,2.157,231.72,231.67,2.1574]
[1734030427233,2.1569,231.74,231.67,2.1574]
[1734030427435,2.1,231.76,231.67,2.1574]
[1734030427835,2.1569,231.73,231.68,2.1573]
[1734030431041,2.1571,231.72,231.66,2.1575]
[1734030431242,2.1,231.76,231.66,2.1575]
[1734030431439,2.1571,231.71,231.66,2.1575]
[1734030431837,2.1,231.76,231.65,4.2776]
[1734030432140,2.1572,231.7,231.65,4.2776]
[1734030432338,2.1572,231.7,231.65,2.12]
[1734030432841,2.1572,231.7,231.65,4.2776]
[1734030434141,2.1,231.76,231.65,4.2776]
[1734030434336,2.1573,231.69,231.65,4.2776]
[1734030434733,2.1573,231.69,231.65,2.1576]
[1734030435433,2.1574,231.68,231.64,9.71475566]
[1734030435932,2.1574,231.68,231.64,2.1577]
[1734030437536,2.1574,231.68,231.64,9.71475566]
[1734030440039,2.1574,231.68,231.64,2.1577]
[1734030440241,7.55705566,231.67,231.54,1.4515]
[1734030440444,7.55705566,231.65,231.57,7.55705566]
[1734030440642,7.55705566,231.63,231.56,7.55705566]
[1734030440847,2.158,231.61,231.56,9.71545566]
[1734030441743,2.1581,231.6,231.56,9.71545566]
[1734030442151,2.1581,231.6,231.56,7.55705566]
[1734030442546,7.55705566,231.61,231.56,7.55705566]
[1734030442742,7.55705566,231.62,231.58,2.1583]
[1734030443149,9.71495566,231.62,231.56,7.55705566]
[1734030444742,9.71495566,231.62,231.57,2.1584]
[1734030445852,1.3608,231.7,231.6,7.55705566]
[1734030446146,7.55705566,231.68,231.6,7.55705566]
[1734030446349,2.1576,231.66,231.6,7.55705566]
[1734030446949,2.1576,231.65,231.6,7.55705566]
[1734030447552,2.1576,231.65,231.57,2.12]
[1734030447553,7.55705566,231.7,231.62,7.55705566]
[1734030447848,9.67705566,231.7,231.64,7.55705566]
[1734030448645,2.1573,231.69,231.64,7.55705566]
[1734030449145,2.1573,231.69,231.63,2.1577]
[1734030449350,2.1574,231.68,231.63,2.1577]
[1734030450554,4.2773,231.7,231.64,2.1577]
[1734030450863,2.12,231.7,231.6,11.80886442]
[1734030451044,5.06360397,231.71,231.6,11.80886442]
[1734030451451,2.1573,231.68,231.63,2.1578]
[1734030451844,2.12,231.72,231.6,11.80886442]
[1734030452048,2.1571,231.71,231.65,2.1575]
[1734030452747,2.1571,231.71,231.63,11.80886442]
[1734030453054,2.1571,231.71,231.64,1.3202]
[1734030453251,2.12,231.73,231.64,1.3202]
[1734030453553,2.1572,231.7,231.65,2.1576]
[1734030453954,2.12,231.73,231.64,1.3202]
[1734030455347,7.42606014,231.73,231.64,1.3202]
[1734030455645,2.1572,231.7,231.65,2.1576]
[1734030458454,2.1573,231.69,231.65,2.1576]
[1734030459659,2.1573,231.69,231.64,3.4779]
[1734030462858,7.42606014,231.73,231.64,3.4779]
[1734030463054,2.1573,231.68,231.64,3.4779]
[1734030464162,2.1575,231.67,231.64,3.4779]
[1734030464363,7.42606014,231.73,231.64,1.3202]
[1734030464560,11.80886442,231.71,231.57,11.80886442]
[1734030464759,11.80886442,231.71,231.58,2.1]
[1734030464962,11.80886442,231.68,231.56,2.1584]
[1734030465163,2.1583,231.58,231.55,3.4454]
[1734030470261,2.1583,231.58,231.55,5.604]
[1734030471063,2.1583,231.58,231.55,3.4454]
[1734030471264,7.56300747,231.62,231.55,11.00840747]
[1734030471565,7.56300747,231.6,231.55,1.3454]
[1734030471971,2.1585,231.57,231.55,1.3454]
[1734030472876,2.1585,231.57,231.53,9.72170747]
[1734030473173,2.1585,231.56,231.53,9.72170747]
[1734030473564,2.1585,231.56,231.53,7.56300747]
[1734030473766,2.1587,231.54,231.51,8.98850747]
[1734030474473,2.1585,231.56,231.53,7.56300747]
[1734030475274,7.56300747,231.58,231.51,1.4255]
[1734030476374,7.56300747,231.58,231.51,8.98850747]
[1734030476674,2.1586,231.55,231.51,11.14740747]
[1734030477477,2.1586,231.55,231.53,7.56300747]
[1734030487675,2.1583,231.58,231.54,2.1586]
[1734030487879,2.1583,231.58,231.51,1.4255]
[1734030487880,2.1,231.63,231.57,7.56300747]
[1734030488280,2.1581,231.6,231.57,7.56300747]
[1734030488487,7.56300747,231.62,231.56,2.1584]
[1734030488882,2.1582,231.6,231.56,2.1584]
[1734030491487,7.56300747,231.62,231.55,7.56300747]
[1734030491788,7.56300747,231.62,231.56,2.1585]
[1734030492177,7.56300747,231.62,231.55,9.72150747]
[1734030492379,2.1,231.63,231.52,2.1]
[1734030492380,7.56300747,231.6,231.52,2.1]
[1734030492585,7.56300747,231.6,231.52,7.56300747]
[1734030492987,2.1586,231.55,231.52,9.72180747]
[1734030493590,2.1585,231.56,231.52,9.72180747]
[1734030493787,2.1585,231.56,231.53,2.1587]
[1734030495490,2.1584,231.58,231.54,9.72160747]
[1734030495686,7.56300747,231.6,231.54,9.72160747]
[1734030496287,7.56300747,231.6,231.54,7.56300747]
[1734030496489,2.1585,231.56,231.54,7.56300747]
[1734030498378,7.56300747,231.6,231.51,1.4255]
[1734030498576,2.1586,231.55,231.52,2.1588]
[1734030498983,7.56300747,231.6,231.53,7.56300747]
[1734030499679,2.1585,231.57,231.54,2.1586]
[1734030500584,2.1585,231.57,231.53,7.56300747]
[1734030500777,2.1585,231.57,231.53,9.72170747]
[1734030502183,2.1583,231.58,231.55,9.72150747]
[1734030502387,9.66300747,231.64,231.57,7.56300747]
[1734030502689,7.56300747,231.64,231.57,7.56300747]
[1734030503387,12.81456769,231.64,231.57,7.56300747]
[1734030503581,12.81456769,231.64,231.58,2.1583]
[1734030504588,2.158,231.61,231.57,7.56300747]
[1734030504786,2.158,231.61,231.57,9.72140747]
[1734030505182,12.81456769,231.64,231.57,9.72140747]
[1734030505489,2.1581,231.6,231.57,9.72140747]
[1734030509787,2.8319,231.72,231.59,7.56300747]
[1734030510086,7.56300747,231.68,231.61,7.56300747]
[1734030510285,7.56300747,231.64,231.57,7.56300747]
[1734030510684,2.1579,231.62,231.58,2.1583]
[1734030511089,7.56300747,231.64,231.57,7.56300747]
[1734030511588,9.66300747,231.64,231.57,7.56300747]
[1734030512290,2.1582,231.6,231.57,7.56300747]
[1734030512686,9.66300747,231.64,231.57,7.56300747]
[1734030513190,2.1581,231.6,231.57,7.56300747]
[1734030513786,7.56300747,231.6,231.51,1.4255]
[1734030513992,5.1661891,231.66,231.51,1.4255]
[1734030513993,7.56300747,231.56,231.51,1.4255]
[1734030514193,7.56300747,231.56,231.49,7.56300747]
[1734030514397,2.1588,231.53,231.49,9.72200747]
[1734030515693,2.1588,231.53,231.49,7.56300747]
[1734030515893,2.1587,231.54,231.5,2.159]
[1734030517390,2.1584,231.58,231.53,9.72170747]
[1734030517595,7.61168775,231.57,231.53,9.72170747]
[1734030517895,2.9276295,231.56,231.54,2.1586]
[1734030518095,2.9276295,231.55,231.54,2.1586]
[1734030518287,2.9276295,231.57,231.53,7.56300747]
[1734030518491,2.9276295,231.56,231.53,7.56300747]
[1734030518691,2.9276295,231.56,231.55,7.56300747]
[1734030518896,2.9276295,231.58,231.55,7.56300747]
[1734030519096,7.61207806,231.57,231.55,7.56300747]
[1734030519399,2.9276295,231.56,231.55,7.56300747]
[1734030519591,2.9276295,231.57,231.55,7.56300747]
[1734030519793,2.9276295,231.56,231.55,7.56300747]
[1734030519990,2.9276295,231.57,231.55,7.56300747]
[1734030520191,2.9276295,231.56,231.55,7.56300747]
[1734030520396,2.9276295,231.57,231.55,7.56300747]
[1734030520698,2.9276295,231.56,231.55,7.56300747]
[1734030521198,2.9276295,231.57,231.55,7.56300747]
[1734030521395,2.1583,231.58,231.55,7.56300747]
[1734030521396,2.9276295,231.56,231.55,7.56300747]
[1734030521597,2.9276295,231.57,231.55,7.56300747]
[1734030521798,2.9276295,231.56,231.55,7.56300747]
[1734030522099,5.0860295,231.57,231.53,9.72170747]
[1734030522291,2.9276295,231.56,231.53,9.72170747]
[1734030524196,2.1586,231.55,231.51,9.72180747]
[1734030524696,2.1586,231.55,231.51,7.56300747]
[1734030525602,2.1586,231.55,231.52,2.1588]
[1734030526499,2.1585,231.56,231.53,7.56300747]
[1734030526703,2.92599579,231.55,231.53,9.72170747]
[1734030527001,2.1585,231.56,231.53,9.72170747]
[1734030527301,2.92590984,231.55,231.53,9.72170747]
[1734030527505,2.1585,231.56,231.53,9.72170747]
[1734030527702,2.92619464,231.55,231.53,9.72170747]
[1734030527899,2.1585,231.56,231.53,9.72170747]
[1734030528100,2.92619941,231.55,231.53,9.72170747]
[1734030528301,2.1585,231.56,231.53,9.72170747]
[1734030528496,2.92623782,231.55,231.53,9.72170747]
[1734030528694,2.1585,231.56,231.53,9.72170747]
[1734030528897,2.92612733,231.55,231.53,9.72170747]
[1734030529093,2.1585,231.56,231.53,9.72170747]
[1734030529298,2.92615164,231.55,231.53,9.72170747]
[1734030529499,2.1585,231.56,231.53,9.72170747]
[1734030529800,2.92615483,231.55,231.53,9.72170747]
[1734030530002,2.1585,231.56,231.53,9.72170747]
[1734030530197,2.9262921,231.55,231.53,9.72170747]
[1734030530401,2.9262921,231.54,231.53,9.72170747]
[1734030530803,2.92622582,231.54,231.53,9.72170747]
[1734030531503,2.1585,231.56,231.53,9.72170747]
[1734030531702,2.92621875,231.55,231.53,9.72170747]
[1734030532000,2.1585,231.56,231.53,9.72170747]
[1734030532198,2.92611443,231.55,231.53,9.72170747]
[1734030532398,2.1585,231.56,231.53,9.72170747]
[1734030532399,2.92611443,231.54,231.53,9.72170747]
[1734030533301,2.1585,231.56,231.53,9.72170747]
[1734030533504,2.92614029,231.55,231.54,2.1587]
[1734030534000,2.1583,231.58,231.53,7.56300747]
[1734030534202,2.1583,231.58,231.49,5.23837731]
[1734030534203,2.92613624,231.57,231.55,7.56300747]
[1734030534412,2.92613624,231.56,231.55,7.56300747]
[1734030534602,2.92613624,231.56,231.55,9.72150747]
[1734030535001,2.92613624,231.57,231.55,9.72150747]
[1734030535202,2.92613624,231.56,231.55,9.72150747]
[1734030535506,2.92613624,231.57,231.55,9.72150747]
[1734030535708,0.74833624,231.57,231.56,2.1585]
[1734030535902,7.56300747,231.66,231.55,7.56300747]
[1734030536201,7.56300747,231.66,231.6,7.56300747]
[1734030536402,2.1578,231.64,231.6,9.72100747]
[1734030537808,2.1578,231.64,231.6,2.158]
[1734030538002,7.56300747,231.66,231.6,2.158]
[1734030538207,7.56300747,231.66,231.58,7.56300747]
[1734030538208,2.1581,231.61,231.56,7.56300747]
[1734030539309,7.56300747,231.62,231.57,2.1583]
[1734030539513,2.1582,231.6,231.57,2.1583]
[1734030540211,7.56300747,231.62,231.56,2.1584]
[1734030540422,9.66300747,231.62,231.56,2.1584]
[1734030540604,7.56300747,231.6,231.54,7.56300747]
[1734030540802,2.1583,231.58,231.55,2.1585]
[1734030541208,7.56300747,231.6,231.54,7.56300747]
[1734030541406,7.56300747,231.6,231.54,2.1586]
[1734030541407,2.1584,231.57,231.54,2.1586]
[1734030543911,2.1584,231.57,231.5,2.1]
[1734030543912,7.56300747,231.56,231.5,2.1]
[1734030544120,7.56300747,231.56,231.49,7.56300747]
[1734030544518,2.1587,231.54,231.5,2.159]
[1734030545518,7.56300747,231.56,231.5,2.159]
[1734030546118,2.1587,231.54,231.5,2.159]
[1734030547220,7.56300747,231.56,231.49,7.56300747]
[1734030547825,2.8916849,231.55,231.49,7.56300747]
[1734030548027,2.8916849,231.54,231.49,7.56300747]
[1734030548327,7.56300747,231.56,231.49,7.56300747]
[1734030548530,2.89227216,231.55,231.49,7.56300747]
[1734030548728,5.05097216,231.54,231.51,2.1589]
[1734030548926,2.1587,231.54,231.51,2.1589]
[1734030550830,2.1587,231.54,231.51,9.72190747]
[1734030551225,2.1587,231.54,231.51,2.1589]
[1734030558035,7.56300747,231.54,231.48,2.6224]
[1734030558234,7.56300747,231.5,231.43,8.92160747]
[1734030558433,7.56300747,231.44,231.35,39.01140626]
[1734030558639,7.56300747,231.44,231.37,2.1601]
[1734030558640,7.56300747,231.41,231.37,2.1601]
[1734030558839,7.56300747,231.41,231.34,7.56300747]
[1734030559735,7.56300747,231.41,231.37,2.1602]
[1734030560331,7.56300747,231.41,231.38,2.1601]
[1734030562837,1.377,231.51,231.38,7.56300747]
[1734030562838,2.1594,231.47,231.38,7.56300747]
[1734030563038,7.56300747,231.46,231.38,7.56300747]
[1734030564136,3.9891607,231.45,231.38,7.56300747]
[1734030564332,3.9891607,231.44,231.43,2.1597]
[1734030565136,3.98787935,231.44,231.43,2.1597]
[1734030565439,7.56300747,231.46,231.43,2.1597]
[1734030565637,3.98691622,231.45,231.43,2.1597]
[1734030565832,7.56300747,231.46,231.43,2.1597]
[1734030565833,3.98691622,231.44,231.43,2.1597]
[1734030567546,7.56300747,231.46,231.43,2.1597]
[1734030567744,3.98556906,231.45,231.43,2.1597]
[1734030568045,7.56300747,231.46,231.43,2.1597]
[1734030568344,3.98501962,231.45,231.43,2.1597]
[1734030568540,7.56300747,231.46,231.43,2.1597]
[1734030568738,3.98502331,231.45,231.43,2.1597]
[1734030568939,3.98502331,231.44,231.43,2.1597]
[1734030569541,1.3237,231.6,231.5,2.159]
[1734030569749,7.56300747,231.54,231.47,7.56300747]
[1734030570045,2.90423145,231.53,231.47,7.56300747]
[1734030570240,2.90423145,231.53,231.52,2.1588]
[1734030570442,9.66300747,231.55,231.52,2.1588]
[1734030573146,7.56300747,231.53,231.49,2.1591]
[1734030574346,9.66300747,231.55,231.49,7.56300747]
[1734030574652,7.56300747,231.51,231.41,1.3893]
[1734030574851,9.72240747,231.46,231.42,2.1598]
[1734030575047,9.72240747,231.46,231.39,7.56300747]
[1734030575847,9.72240747,231.46,231.41,2.1598]
[1734030576053,9.72240747,231.46,231.39,7.56300747]
[1734030576353,7.56300747,231.46,231.39,7.56300747]
[1734030576851,7.56300747,231.46,231.41,2.1599]
[1734030577250,9.72240747,231.46,231.41,2.1599]
[1734030577454,9.72240747,231.46,231.39,7.56300747]
[1734030577752,7.56300747,231.46,231.42,2.1598]
[1734030580355,9.72240747,231.46,231.42,2.1598]
[1734030581053,7.56300747,231.46,231.42,2.1598]
[1734030581244,7.56300747,231.46,231.43,2.1597]
[1734030581450,7.56300747,231.46,231.38,7.56300747]
[1734030581646,3.93129332,231.45,231.38,7.56300747]
[1734030581854,3.93129332,231.44,231.38,7.56300747]
[1734030582056,3.93139764,231.43,231.38,7.56300747]
[1734030582252,7.56300747,231.44,231.36,2.7314]
[1734030582560,2.1,231.48,231.36,10.29440747]
[1734030582561,7.56300747,231.42,231.36,10.29440747]
[1734030582765,2.1598,231.43,231.39,2.16]
[1734030582948,7.56300747,231.47,231.4,7.56300747]
[1734030583147,3.93213477,231.46,231.4,7.56300747]
[1734030583355,3.93213477,231.45,231.42,2.1597]
[1734030583553,3.93213477,231.44,231.42,2.1597]
[1734030583758,9.72230747,231.47,231.42,2.1597]
[1734030583958,3.93272985,231.46,231.42,2.1597]
[1734030584149,3.93272985,231.45,231.36,2.7314]
[1734030584355,3.93272985,231.44,231.41,2.1598]
[1734030586157,3.93272985,231.44,231.38,7.56300747]
[1734030586364,3.93272985,231.44,231.4,7.56300747]
[1734030587162,3.93272985,231.44,231.41,2.1598]
[1734030587462,7.56300747,231.45,231.4,7.56300747]
[1734030587962,3.93368038,231.44,231.42,2.1597]
[1734030588164,7.56300747,231.45,231.42,2.1597]
[1734030588363,3.9339709,231.44,231.42,2.1597]
[1734030588666,7.56300747,231.45,231.43,2.1597]
[1734030588966,3.93399167,231.44,231.43,2.1597]
[1734030590761,3.93463731,231.44,231.43,2.1597]
[1734030590963,3.93463731,231.46,231.43,2.1597]
[1734030591162,7.56300747,231.47,231.43,2.1597]
[1734030591163,3.93463731,231.45,231.43,2.1597]
[1734030591459,3.93463731,231.44,231.43,2.1597]
[1734030591663,3.93463731,231.46,231.43,2.1597]
[1734030591965,3.93463731,231.45,231.43,2.1597]
[1734030592165,3.93463731,231.44,231.43,2.1597]
[1734030592364,3.93463731,231.46,231.43,2.1597]
[1734030592664,3.93463731,231.45,231.43,2.1597]
[1734030592865,3.93463731,231.44,231.43,2.1597]
[1734030593264,9.72230747,231.47,231.44,2.1596]
[1734030593460,6.84179328,231.46,231.44,2.1596]
[1734030593660,4.2592,231.48,231.44,2.1596]
[1734030593661,3.9363827,231.45,231.44,2.1596]
[1734030593859,2.1,231.48,231.36,2.7314]
[1734030593860,2.1,231.48,231.42,7.56300747]
[1734030594073,3.93691261,231.47,231.45,2.1594]
[1734030594265,3.93691261,231.46,231.42,7.56300747]
[1734030594465,2.1,231.48,231.42,7.56300747]
[1734030594665,3.93758502,231.47,231.42,7.56300747]
[1734030594965,3.93758502,231.46,231.42,7.56300747]
[1734030595261,11.82210747,231.49,231.45,2.1594]
[1734030595461,3.93867132,231.48,231.45,2.1594]
[1734030595658,3.93867132,231.47,231.45,2.1594]
[1734030595863,3.93867132,231.46,231.45,2.1594]
[1734030598071,3.94053739,231.51,231.47,2.1592]
[1734030598267,6.85059115,231.5,231.44,7.56300747]
[1734030598466,2.1589,231.51,231.44,7.56300747]
[1734030598467,6.85059115,231.49,231.44,7.56300747]
[1734030598667,3.94145232,231.48,231.44,7.56300747]
[1734030598968,3.94145232,231.47,231.44,7.56300747]
[1734030599165,2.1589,231.51,231.44,7.56300747]
[1734030599369,6.85270162,231.5,231.44,7.56300747]
[1734030599667,3.94266841,231.49,231.42,7.56300747]
[1734030599871,6.85246167,231.48,231.42,7.56300747]
[1734030600171,9.72220747,231.49,231.42,7.56300747]
[1734030600172,3.94266841,231.47,231.42,7.56300747]
[1734030600369,9.72220747,231.49,231.42,7.56300747]
[1734030600570,6.85407314,231.48,231.42,7.56300747]
[1734030600772,3.94366192,231.47,231.42,7.56300747]
[1734030601070,3.94366192,231.46,231.42,7.56300747]
[1734030601261,3.94366192,231.45,231.42,7.56300747]
[1734030601468,9.72220747,231.49,231.45,2.1594]
[1734030601667,6.85654174,231.48,231.45,2.1594]
[1734030601871,6.85654174,231.47,231.45,2.1594]
[1734030602069,3.94487362,231.46,231.45,2.1594]
[1734030602469,3.94487362,231.46,231.43,2.1596]
[1734030602770,3.94660825,231.45,231.42,7.56300747]
[1734030602970,3.94660825,231.44,231.42,7.56300747]
[1734030603174,4.2592,231.48,231.44,2.1596]
[1734030603468,6.86346084,231.47,231.44,2.1596]
[1734030603774,6.86346084,231.46,231.44,2.1596]
[1734030603969,3.94885369,231.45,231.44,2.1596]
[1734030604174,6.86318206,231.45,231.44,2.1596]
[1734030605074,3.94885369,231.45,231.44,2.1596]
[1734030605870,4.2592,231.48,231.44,2.1596]
[1734030606073,3.94892693,231.45,231.44,2.1596]
[1734030607572,3.94892693,231.47,231.44,2.1596]
[1734030607773,6.86372771,231.46,231.44,2.1596]
[1734030607973,3.94892693,231.45,231.44,2.1596]
[1734030608174,3.94892693,231.47,231.44,2.1596]
[1734030608375,3.94892693,231.46,231.45,7.56300747]
[1734030609271,3.94892693,231.46,231.45,9.72250747]
[1734030611577,7.56300747,231.55,231.45,7.56300747]
[1734030611788,11.52869155,231.54,231.51,2.1589]
[1734030612088,11.52869155,231.53,231.51,2.1589]
[1734030612286,6.86409584,231.52,231.51,2.1589]
[1734030612889,6.86409584,231.52,231.5,2.159]
[1734030613102,6.86409584,231.51,231.5,2.159]
[1734030613291,3.94872353,231.51,231.5,2.159]
[1734030613592,3.94872353,231.51,231.5,9.72200747]
[1734030614185,3.94872353,231.51,231.5,2.159]
[1734030615592,9.72160747,231.55,231.51,2.1589]
[1734030615792,6.86101204,231.54,231.5,7.56300747]
[1734030615993,6.86101204,231.53,231.5,7.56300747]
[1734030616202,6.86101204,231.52,231.51,2.1589]
[1734030616593,3.94694741,231.52,231.51,2.1589]
[1734030616995,6.86147302,231.52,231.51,2.1589]
[1734030617197,3.94694741,231.52,231.51,2.1589]
[1734030617393,7.56300747,231.6,231.55,2.1585]
[1734030617587,7.57885506,231.59,231.55,2.1585]
[1734030617794,7.57885506,231.58,231.53,7.56300747]
[1734030618094,7.56300747,231.6,231.54,2.1586]
[1734030618095,7.57885506,231.57,231.54,2.1586]
[1734030618298,10.47795172,231.56,231.49,2.1]
[1734030618507,7.57760172,231.55,231.49,11.82200747]
[1734030618691,2.91416205,231.54,231.49,11.82200747]
[1734030618896,2.91416205,231.53,231.49,11.82200747]
[1734030619404,2.1588,231.52,231.48,2.1592]
[1734030619592,2.91416205,231.51,231.45,7.56300747]
[1734030619895,2.91416205,231.5,231.45,7.56300747]
[1734030620198,7.56300747,231.52,231.45,7.56300747]
[1734030620399,2.91405044,231.51,231.45,7.56300747]
[1734030620602,2.91405044,231.5,231.47,2.1593]
[1734030621099,2.91405044,231.5,231.44,6.2305]
[1734030621301,2.91405044,231.5,231.46,2.1593]
[1734030621491,2.159,231.51,231.45,7.56300747]
[1734030621799,2.1588,231.53,231.45,7.56300747]
[1734030622001,7.56300747,231.46,231.36,5.99439202]
[1734030622202,7.56300747,231.46,231.38,7.56300747]
[1734030622698,7.56300747,231.48,231.4,7.56300747]
[1734030622894,1.4296,231.51,231.4,7.56300747]
[1734030622895,9.67290845,231.47,231.4,7.56300747]
[1734030623096,5.01277315,231.47,231.4,7.56300747]
[1734030623296,2.91260917,231.46,231.42,7.56300747]
[1734030623494,2.1593,231.48,231.42,7.56300747]
[1734030623695,2.91275367,231.47,231.44,7.56300747]
[1734030623902,2.1,231.5,231.44,7.56300747]
[1734030624090,2.91289283,231.49,231.44,7.56300747]
[1734030624291,2.91289283,231.48,231.44,7.56300747]
[1734030624496,2.91289283,231.47,231.44,7.56300747]
[1734030624802,4.2591,231.5,231.45,2.1594]
[1734030625001,2.9128221,231.49,231.45,2.1594]
[1734030625202,2.9128221,231.48,231.45,2.1594]
[1734030625397,2.1591,231.49,231.44,9.72260747]
[1734030625593,7.5722001,231.48,231.42,7.56300747]
[1734030625798,10.47551199,231.47,231.39,2.1]
[1734030626003,2.91250452,231.46,231.41,2.1599]
[1734030626305,7.56300747,231.47,231.41,2.1599]
[1734030626501,2.91205016,231.46,231.41,2.1599]
[1734030626700,2.91205016,231.45,231.41,2.1599]
[1734030626902,9.72250747,231.45,231.39,2.16]
[1734030627193,11.82250747,231.45,231.39,2.16]
[1734030628194,2.91198113,231.44,231.39,2.16]
[1734030628399,11.82250747,231.45,231.39,2.16]
[1734030628598,2.91210887,231.44,231.39,2.16]
[1734030628800,11.82250747,231.45,231.39,2.16]
[1734030628998,2.1,231.45,231.39,7.56300747]
[1734030629203,1.4296,231.51,231.43,7.56300747]
[1734030629204,7.56300747,231.49,231.43,7.56300747]
[1734030629401,7.57224137,231.48,231.43,7.56300747]
[1734030629597,7.57224137,231.47,231.43,9.72260747]
[1734030629795,2.91240053,231.46,231.43,9.72260747]
[1734030629995,2.159,231.5,231.43,7.56300747]
[1734030630195,11.09260747,231.51,231.43,7.56300747]
[1734030630196,7.57389343,231.49,231.43,7.56300747]
[1734030630405,2.91303593,231.48,231.43,7.56300747]
[1734030630610,11.09260747,231.51,231.43,7.56300747]
[1734030630905,7.57410322,231.5,231.43,7.56300747]
[1734030631509,4.66064231,231.49,231.43,7.56300747]
[1734030631700,4.66064231,231.49,231.45,2.1594]
[1734030631701,2.91290144,231.49,231.45,2.1594]
[1734030631896,2.159,231.5,231.45,2.1594]
[1734030631897,2.91290144,231.48,231.45,2.1594]
[1734030632103,2.159,231.5,231.45,2.1594]
[1734030632301,2.91308775,231.49,231.45,2.1594]
[1734030632501,2.91308775,231.48,231.45,2.1594]
[1734030632708,2.91308775,231.47,231.45,2.1594]
[1734030632906,2.159,231.5,231.45,2.1594]
[1734030633106,2.91308992,231.49,231.45,9.72240747]
[1734030633304,2.91308992,231.48,231.46,2.1594]
[1734030633507,2.1,231.51,231.46,2.1594]
[1734030633908,7.57498703,231.5,231.48,2.1592]
[1734030634207,7.57498703,231.5,231.39,2.1]
[1734030634208,2.91345655,231.49,231.45,7.56300747]
[1734030634399,2.91345655,231.48,231.45,7.56300747]
[1734030634597,2.91345655,231.5,231.45,7.56300747]
[1734030634810,7.5752934,231.5,231.45,7.56300747]